[Event "Susha Chess Blitz 2022"]
[Site "Shusha"]
[Date "2022.09.24"]
[Round "9"]
[White "Guseinov, Gadir"]
[Black "Maghsoodloo, Parham"]
[Result "0-1"]
[ECO "B24"]
[WhiteElo "2661"]
[BlackElo "2721"]
[Annotator "TA"]
[PlyCount "136"]
[EventDate "2022.09.24"]
[EventType "tourn"]
[EventCountry "AZE"]
[SourceTitle "playchess.com"]
[Source "ChessBase"]
[SourceQuality "1"]
[TimeControl "180+2"]

{[%evp 10,136,0,0,0,0,0,7,0,-12,0,-11,-8,0,0,0,25,24,11,23,22,27,16,16,11,15,35,11,24,25,18,13,15,11,14,0,0,0,0,0,0,0,0,0,0,-3,-8,-15,0,-8,-6,-27,-13,-13,-14,-70,-77,-73,-73,-97,32,32,58,43,47,32,78,0,46,0,32,33,76,61,61,32,32,32,32,32,499,32,32,0,0,0,0,0,13,0,8,0,47,13,23,0,0,0,0,0,0,0,0,0,0,0,0,0,0,0,0,-90,-90,-90,-90,-102,0,-14,-20,-690,-650,-29970,-29971,-29983,-29984,-29985,-29986,-29986,-29987]} 1. e4 {[%emt 0:00:01]} c5 {[%emt 0:00:01]} 2. Nc3 {[%emt 0:00:03]} Nc6 {[%emt 0:00:01]} 3. Bb5 {[%emt 0:00:01]} Nd4 {[%emt 0:00:03]} 4. Nf3 {[%emt 0:00:01]} e6 {[%emt 0:00:01]} 5. O-O {[%emt 0:00:02]} Nxb5 {[%emt 0:00:02]} 6. Nxb5 {[%emt 0:00:01]} a6 {[%emt 0:00:01] B30: Sicilian: 2...Nc6 3 Bb5, lines without ...g6.} 7. Nc3 {[%emt 0:00:01]} b5 {[%emt 0:00:01]} 8. d4 {[%emt 0:00:04]} cxd4 {[%emt 0:00:02] The position is equal.} 9. Nxd4 {[%emt 0:00:07]} Bb7 {[%emt 0:00:02]} 10. Re1 {[%emt 0:00:01][%cal Oc3d5]} Ne7 {[%emt 0:00:22]} 11. Bf4 {[%emt 0:00:21][%cal Oc3b5]} Ng6 {[%emt 0:00:05]} 12. Bg3 {[%emt 0:00:03][%cal Od4f5] [#]} Be7 $146 {[%emt 0:00:24] [#]} ({Predecessor:} 12... Bc5 13. Nb3 Ba7 14. Bd6 Qg5 15. a4 bxa4 16. Rxa4 Nh4 17. g3 Rc8 18. Ra5 Qf6 19. gxh4 Bxf2+ {1-0 (26) Hammel,R-Nocke,T (2225) Mecklenburg VP 1994}) 13. Nf5 $1 {[%emt 0:00:24]} exf5 {[%emt 0:00:12]} 14. exf5 {[%emt 0:00:00]} O-O {[%emt 0:00:02] And now ...Nh4 would win.} 15. fxg6 {[%emt 0:00:03]} hxg6 {[%emt 0:00:03]} 16. Nd5 {[%emt 0:00:17][%cal Bc3d5,Bd5f4,Bf4d3,Bd3e5][%mdl 32]} Bc5 {[%emt 0:00:09]} 17. Qd2 {[%emt 0:00:32]} Rc8 {[%emt 0:00:12]} 18. Rad1 {[%emt 0:00:02]} a5 {[%emt 0:00:06]} 19. c3 {[%emt 0:00:06]} Re8 {[%emt 0:00:09]} 20. a3 {[%emt 0:00:28]} Re6 {[%emt 0:00:11]} 21. Nf4 {[%emt 0:00:13]} Rd6 {[%emt 0:00:03]} 22. Qe2 {[%emt 0:00:08]} Rxd1 {[%emt 0:00:06]} 23. Rxd1 {[%emt 0:00:01]} Bc6 {[%emt 0:00:02]} 24. Nd3 {[%emt 0:00:06]} Bb6 {[%emt 0:00:05]} 25. Ne5 {[%emt 0:00:03]} Qe7 {[%emt 0:00:03]} 26. Qd2 {[%emt 0:00:04] Against d6} Qe6 {[%emt 0:00:11]} 27. Nxc6 {[%emt 0:00:09]} dxc6 {[%emt 0:00:02]} 28. Re1 {[%emt 0:00:07]} Qf5 {[%emt 0:00:07]} 29. h4 {[%emt 0:00:11]} Rd8 30. Qe2 Bc5 {[%emt 0:00:36]} 31. Kh2 {[%emt 0:00:03]} a4 {[%emt 0:00:02]} 32. c4 {[%emt 0:00:11]} ({White should play} 32. f3 $11) 32... bxc4 $15 33. Rc1 Qd3 {[%emt 0:00:14]} 34. Qc2 {[%emt 0:00:07]} (34. Qxd3 $2 cxd3 35. Rd1 (35. Rxc5 $2 d2 $19) 35... Be7 $19) 34... Bd6 {[%emt 0:00:26] Black has more active pieces.} (34... Bd4 $1 $17 {aiming for ...Qb3.} 35. Qxa4 Bxb2 36. Rxc4 Qb1) 35. Qxc4 $14 {[%emt 0:00:04]} Bxg3+ 36. fxg3 {[%emt 0:00:00][%mdl 4096] Endgame KQR-KQR} Qd2 {[%emt 0:00:04]} 37. Rc2 {[%emt 0:00:02]} Qe1 {[%emt 0:00:01]} (37... Qe3 $14 {should be considered.}) 38. Rc1 {[%emt 0:00:01]} (38. Re2 $16 Qd1 39. Re7) 38... Qf2 {[%emt 0:00:02]} (38... Qd2 $11) 39. Rc2 {[%emt 0:00:01]} (39. Rf1 $1 $14 Rd4 40. Qxa4 (40. Rxf2 Rxc4 41. Kh3 Kf8 $11) 40... Qxg3+ 41. Kxg3 Rxa4 42. Rc1) 39... Qe3 {[%emt 0:00:02]} 40. Re2 {[%emt 0:00:03]} ({Reject} 40. Qxa4 Rd1 41. Rf2 Qe1 $17) 40... Qd3 {[%emt 0:00:04]} 41. Re8+ {[%emt 0:00:04]} Kh7 {[%emt 0:00:01]} 42. Qxf7 {[%emt 0:00:01] Qg8+ would kill now.} (42. Qxc6 $5 {[%cal Re8d8]} Rxe8 43. Qxe8 $16) 42... Rxe8 {[%emt 0:00:01]} 43. Qxe8 {[%emt 0:00:01] KQ-KQ} Qc4 {[%emt 0:00:03]} 44. Qe5 {[%emt 0:00:01]} Qd5 $2 {[%emt 0:00:02][%mdl 8192] [#]} (44... c5 $14) 45. Qc3 $2 {[%emt 0:00:03]} (45. Qxd5 $1 $18 cxd5 46. Kg1) 45... c5 {[%emt 0:00:01]} 46. Kg1 {[%emt 0:00:04]} (46. Qc2 $5 {[%cal Rc2a4]} Qb3 47. Qc3 $16 (47. Qxc5 Qxb2 48. Qe7 Qb3 $16)) 46... c4 {[%emt 0:00:03]} 47. Kh2 {[%emt 0:00:01]} Qb5 {[%emt 0:00:02]} 48. Qd4 {[%emt 0:00:00]} Kg8 {[%emt 0:00:03]} 49. Qd2 {[%emt 0:00:02]} Kh7 {[%emt 0:00:01]} 50. Qd4 {[%emt 0:00:01]} Kg8 {[%emt 0:00:01]} 51. g4 {[%emt 0:00:00]} Kh7 {[%emt 0:00:01]} 52. Kh3 {[%emt 0:00:01]} Qb3+ $1 {[%emt 0:00:01]} 53. Kh2 {[%emt 0:00:02]} Qd3 {[%emt 0:00:01]} 54. Qe5 {[%emt 0:00:02]} Qd1 {[%emt 0:00:05]} 55. Kg3 {[%emt 0:00:04]} Qd3+ {[%emt 0:00:01]} 56. Kh2 {[%emt 0:00:02]} Qd1 {[%emt 0:00:01]} 57. Qe4 {[%emt 0:00:02] Threatens to win with h5.} Qd6+ {[%emt 0:00:02]} 58. Kh3 {[%emt 0:00:03]} Qd3+ {[%emt 0:00:01]} 59. Qf3 {[%emt 0:00:02]} Qb3 {[%emt 0:00:03]} 60. Kh2 {[%emt 0:00:02]} (60. Qc3 $11) 60... Qxb2 $17 {[%emt 0:00:01] ...Qf6 is the strong threat.} 61. h5 {[%emt 0:00:01] [#] Intending hxg6+ and mate.} Qe5+ $1 {[%emt 0:00:01]} 62. Kh3 {[%emt 0:00:01]} (62. Qg3 Qxg3+ 63. Kxg3 c3 64. Kf4 c2 65. g3 c1=Q+ 66. Ke4 Qxa3 67. Kd4 Qb4+ 68. Ke5 a3 69. Ke6 a2 70. Kd7 a1=Q 71. hxg6+ Kxg6 72. Kc6 Qh1+ 73. Kc7 Qhb7+ 74. Kd8 Qf8#) 62... Qd6 {[%emt 0:00:03] Prevents Qc6.} (62... gxh5 $17 63. gxh5 c3 64. Qd3+ Kg8 65. Qc4+ Kh7 66. Qd3+ Kg8) 63. g3 {[%emt 0:00:03]} Qd3 {[%emt 0:00:03]} 64. Qc6 $2 {[%emt 0:00:02][%mdl 8192]} (64. hxg6+ $11 Kxg6 65. Qc6+ Kh7 66. Qe8) 64... gxh5 $19 {[%emt 0:00:02]} 65. gxh5 c3 {[%emt 0:00:01] Black mates.} 66. h6 {[%emt 0:00:04]} c2 {[%emt 0:00:02]} 67. hxg7 {[%emt 0:00:01]} Qf1+ {[%emt 0:00:01]} 68. Kg4 {[%emt 0:00:01]} c1=Q {[%emt 0:00:01] Quite a comeback for Black.  Weighted Error Value: White=0.25 (precise) /Black=0.21 (precise)} 0-1

[Event "Susha Chess Blitz 2022"]
[Site "Shusha"]
[Date "2022.09.24"]
[Round "9"]
[White "Mamedov, Rauf"]
[Black "Wang, Hao"]
[Result "1-0"]
[ECO "C77"]
[WhiteElo "2646"]
[BlackElo "2722"]
[Annotator "TA"]
[PlyCount "87"]
[EventDate "2022.09.24"]
[EventType "tourn"]
[EventCountry "AZE"]
[SourceTitle "playchess.com"]
[Source "ChessBase"]
[SourceQuality "1"]
[TimeControl "180+2"]

{[%evp 16,87,-12,-22,-8,-24,6,-6,0,2,39,26,21,17,51,54,51,47,138,162,154,159,153,155,140,35,46,54,119,114,107,111,101,104,148,148,177,172,165,160,149,96,62,68,221,229,235,221,904,855,2557,2546,2249,424,479,0,2127,517,517,517,517,502,713,627,1999,1963,5591,5214,5177,5169,5093,4627,4610,4132]} 1. e4 {[%emt 0:00:01]} e5 {[%emt 0:00:01]} 2. Nf3 {[%emt 0:00:01]} Nc6 {[%emt 0:00:02]} 3. Bb5 {[%emt 0:00:01][%cal Bf1b5,Bb5a4,Ba4b3][%mdl 32]} a6 {[%emt 0:00:03]} 4. Ba4 {[%emt 0:00:01]} Nf6 {[%emt 0:00:01]} 5. Qe2 {[%emt 0:00:01]} b5 {[%emt 0:00:06]} 6. Bb3 {[%emt 0:00:01]} Bc5 {[%emt 0:00:02]} 7. c3 {[%emt 0:00:01]} d6 {[%emt 0:00:03]} 8. d3 {[%emt 0:00:02]} h6 {[%emt 0:00:04] 8...0-0 is not played anymore.} 9. Nbd2 {[%emt 0:00:02][%cal Bb1d2,Bd2f1,Bf1g3,Bg3f5][%mdl 32]} O-O {[%emt 0:00:06] C77: Ruy Lopez: 3...a6 4 Ba4 Nf6, unusual lines.} 10. h3 {[%emt 0:00:01]} Be6 {[%emt 0:00:08]} 11. Nf1 {[%emt 0:00:02]} Re8 {[%emt 0:00:06] [#] The position is equal.} 12. g4 $146 {[%emt 0:00:05]} ({Predecessor:} 12. Ng3 d5 13. O-O Qd7 14. Rd1 d4 15. Bxe6 Qxe6 16. Nf5 Rad8 17. g4 Bf8 18. Kh2 {1-0 (42) Georgiadis,N (2289)-Almada,E (2356) Switzerland 2012}) 12... Nh7 {[%emt 0:00:41]} 13. Rg1 {[%emt 0:00:02]} Bxb3 {[%emt 0:00:20]} 14. axb3 {[%emt 0:00:01]} Ne7 {[%emt 0:00:01]} 15. Ng3 {[%emt 0:00:06]} Ng6 {[%emt 0:00:09]} 16. g5 {[%emt 0:00:42]} Nxg5 {[%emt 0:01:01]} (16... h5 $14) 17. Nxg5 $16 {[%emt 0:00:02]} hxg5 {[%emt 0:00:02]} 18. Nf5 $1 {[%emt 0:00:01]} Nf4 {[%emt 0:00:06]} 19. Bxf4 {[%emt 0:00:24]} exf4 {[%emt 0:00:02]} 20. h4 {[%emt 0:00:04] White is more active.} (20. Qh5 $16 Qf6 21. Rxg5) 20... g6 $1 $14 {[%emt 0:00:08]} 21. Rxg5 {[%emt 0:00:18] Qg4 is the strong threat.} Qf6 {[%emt 0:00:03]} (21... Kf8 $1 $14) 22. O-O-O {[%emt 0:00:28]} Kf8 {[%emt 0:00:01]} 23. Nh6 {[%emt 0:00:08]} Qh8 {[%emt 0:00:02] [#]} 24. Nxf7 {[%emt 0:00:28][%mdl 512]} Kxf7 (24... Qxh4 25. d4) 25. Qg4 {And now h5 would win.} Re6 {[%emt 0:00:09]} 26. h5 {[%emt 0:00:25][%cal Bh4h5,Bh5g6][%mdl 32]} Rg8 {[%emt 0:00:04]} 27. d4 {[%emt 0:00:05]} Bb6 {[%emt 0:00:09] [#] Hoping for ...gxh5.} 28. Rg1 {[%emt 0:00:03]} ({Better is} 28. e5 $1 Ke7 29. hxg6) 28... Ke7 $16 {[%emt 0:00:08]} 29. hxg6 {[%emt 0:00:01]} Bxd4 $2 {[%emt 0:00:02] White leaves nothing to chance now.} 30. cxd4 $18 {[%emt 0:00:02]} Qxd4 {[%emt 0:00:02]} 31. Qxf4 {[%emt 0:00:04] Really sharp!} Rg7 {[%emt 0:00:02] [#] Inhibits Qf7+.} (31... Rf6 32. Qh4 Ke8) 32. Rf5 $1 {[%emt 0:00:05] Black must now prevent Rf7+.} Rf6 {[%emt 0:00:02] Prevents Rf7+.} 33. Qh4 {[%emt 0:00:06]} Ke6 {[%emt 0:00:02]} 34. Qh3 {[%emt 0:00:06]} (34. Qh8 $142 Rxf5 35. Qe8+ Kf6 36. Qf8+ Ke6 37. exf5+ (37. Qxf5+ Ke7 $18) 37... Kd7 38. f6 Qf4+ 39. Kb1 Rxg6 40. Qf7+ Kc6 41. Qxg6) 34... Ke7 {[%emt 0:00:02]} 35. Qh4 $40 {[%emt 0:00:01][%mdl 128] Black needs to defend precisely.} (35. Qf3 $142) 35... Ke6 {[%emt 0:00:01]} 36. Qg4 {[%emt 0:00:03]} (36. Qh8 $142 {White threatens Qe8+ and mate.} Rxf5 37. Qe8+ Kf6 38. Qf8+ Ke6 39. exf5+ (39. Qxf5+ Ke7 $18) 39... Kd7 40. f6 Qf4+ 41. Kb1 Rxg6 42. Qf7+ Kc8 43. Qxg6) 36... Ke7 {[%emt 0:00:01]} 37. Rxf6 {[%emt 0:00:00]} Qxf6 {[%emt 0:00:02][%mdl 4096] Endgame KQR-KQR} 38. f4 {[%emt 0:00:01][%cal Bf2f4,Bf4f5,Bf5f6][%mdl 32]} Qd4 {[%emt 0:00:05]} 39. f5 {[%emt 0:00:01][%cal Oe4e5] aiming for e5!} Qe3+ {[%emt 0:00:03]} 40. Kb1 {[%emt 0:00:01]} Qxb3 {[%emt 0:00:02]} 41. Qg5+ {[%emt 0:00:03]} Kd7 {[%emt 0:00:01]} 42. f6 {[%emt 0:00:01]} Qd3+ {[%emt 0:00:02]} 43. Ka1 {[%emt 0:00:01]} Qxe4 {[%emt 0:00:01]} 44. Qg4+ {[%emt 0:00:02] Weighted Error Value: White=0.66/Black=0.26 (precise)} 1-0

[Event "Susha Chess Blitz 2022"]
[Site "Shusha"]
[Date "2022.09.24"]
[Round "9"]
[White "Durarbayli, Vasif"]
[Black "Vidit, Santosh Gujrathi"]
[Result "1/2-1/2"]
[ECO "C65"]
[WhiteElo "2628"]
[BlackElo "2710"]
[Annotator "TA"]
[PlyCount "133"]
[EventDate "2022.09.24"]
[EventType "tourn"]
[EventCountry "AZE"]
[SourceTitle "playchess.com"]
[Source "ChessBase"]
[SourceQuality "1"]
[TimeControl "180+2"]

{[%evp 9,133,8,9,18,22,16,11,18,21,8,45,25,25,38,24,29,30,26,14,14,30,30,43,27,35,11,23,2,51,43,51,17,15,21,32,24,114,107,114,107,110,26,33,27,28,7,29,0,37,44,111,4,27,29,27,2,28,0,0,0,0,0,0,0,2,0,0,0,7,11,14,8,30,0,0,-50,-44,-35,-47,-185,-176,-162,-183,-178,-181,-173,-168,-149,-136,-223,-202,-289,-241,-277,-202,-296,-275,-271,-188,-183,-181,-142,0,-136,0,0,0,0,0,0,0,0,0,0,0,0,0,0,0,0,0,0,0,0,0,0]} 1. e4 {[%emt 0:00:01]} e5 {[%emt 0:00:01]} 2. Nf3 {[%emt 0:00:01]} Nc6 {[%emt 0:00:01]} 3. Bb5 Nf6 4. d3 {[%emt 0:00:04]} Bc5 {[%emt 0:00:03]} 5. c3 {[%emt 0:00:01]} O-O {[%emt 0:00:03]} 6. O-O {[%emt 0:00:03] C65: Ruy Lopez: Berlin Defence (3...Nf6), unusual lines and 4 0-0 Bc5.} d5 {[%emt 0:00:01]} 7. exd5 {[%emt 0:00:01]} Qxd5 {[%emt 0:00:02][%cal Oc5f2]} 8. Bc4 {[%emt 0:00:01]} Qd8 {[%emt 0:00:01]} 9. b4 {[%emt 0:00:00]} Bd6 {[%emt 0:00:04]} 10. Bg5 {[%emt 0:00:08]} h6 {[%emt 0:00:07]} 11. Bxf6 {[%emt 0:00:02]} Qxf6 {[%emt 0:00:02]} 12. Nbd2 {[%emt 0:00:01]} Bf5 {[%emt 0:00:07] [#]} 13. Ne4 $146 {[%emt 0:00:13]} ({Predecessor:} 13. Re1 a5 14. b5 Ne7 15. Ne4 Bxe4 16. Rxe4 Ng6 17. g3 Rad8 18. Qe2 Rfe8 19. Re1 {1-0 (70) Grandelius,N (2670)-Tari,A (2639) chess24.com INT 2021}) 13... Bxe4 {[%emt 0:00:07]} 14. dxe4 {[%emt 0:00:02]} Rad8 {[%emt 0:00:01][%cal Od6b4]} 15. Qe2 {[%emt 0:00:04]} Nb8 {[%emt 0:00:10]} 16. Rad1 {[%emt 0:00:17]} c6 {[%emt 0:00:02]} 17. h3 {[%emt 0:00:07]} Bc7 {[%emt 0:00:01]} 18. Nh2 {[%emt 0:00:05]} Rxd1 {[%emt 0:00:21]} (18... a5 $11 {was preferrable.}) 19. Rxd1 $14 {[%emt 0:00:01]} Rd8 {[%emt 0:00:01]} 20. Ng4 {[%emt 0:00:01]} (20. Rxd8+ {is more complex.} Qxd8 21. Qh5 Qe7 22. Qg6) 20... Rxd1+ {[%emt 0:00:03]} 21. Qxd1 {[%emt 0:00:01]} Qe7 {[%emt 0:00:02]} 22. Ne3 {[%emt 0:00:05]} g6 {[%emt 0:00:13] Prevents Nf5.} (22... b5 $11) 23. Qg4 $16 {[%emt 0:00:02]} Kh7 {[%emt 0:00:02]} 24. Qc8 $36 {[%emt 0:00:15][%mdl 2048] Keeping Black busy.} Bd6 {[%emt 0:00:03]} 25. a4 {[%emt 0:00:20] White is much more active.} (25. Ng4 $16) 25... Kg7 $1 $11 {[%emt 0:00:05]} 26. Qg4 {[%emt 0:00:17] And now Nf5+ would win.} Kh7 {[%emt 0:00:19]} 27. Qd1 {[%emt 0:00:52][%cal Oc4f7] Bxf7! is the strong threat.} Kg7 {[%emt 0:00:08]} 28. a5 {[%emt 0:00:06][%cal Oh3h4]} h5 {[%emt 0:00:12]} 29. Be2 {[%emt 0:00:14][%cal Oe2h5]} h4 {[%emt 0:00:27]} (29... a6 $14) 30. Bg4 {[%emt 0:00:07]} (30. Ng4 $16) 30... b6 {[%emt 0:00:05]} 31. axb6 {[%emt 0:00:11]} axb6 {[%emt 0:00:01]} 32. Be2 {[%emt 0:00:04]} (32. Qd2 $5 {[%cal Rg4d1]}) 32... b5 {[%emt 0:00:08]} 33. Bg4 {[%emt 0:00:01]} Bc7 {[%emt 0:00:03]} 34. Bc8 {[%emt 0:00:02]} Bb6 {[%emt 0:00:14]} 35. Ng4 {[%emt 0:00:06]} Qc7 {[%emt 0:00:14]} 36. Qd2 {[%emt 0:00:00] White wants to mate with Qh6+.} Qe7 {[%emt 0:00:07]} (36... Qxc8 $2 {gets mated.} 37. Qh6+ Kg8 38. Nf6#) 37. Qh6+ {[%emt 0:00:09]} Kg8 {[%emt 0:00:01]} 38. Bf5 {[%emt 0:00:06][%cal Of5g6]} Bd8 {[%emt 0:00:15] [#]} 39. Bxg6 $1 {[%emt 0:00:03]} fxg6 {[%emt 0:00:01]} 40. Qxg6+ {[%emt 0:00:01]} Kf8 {[%emt 0:00:06]} 41. Nh6 {[%emt 0:00:03][%csl Gh6][%cal Rg6g8][%mdl 1024] White has compensation.} Qf6 {[%emt 0:00:06]} 42. Qh7 {[%emt 0:00:05]} (42. Qg8+ $11 Ke7 43. Qh7+ (43. Ng4 $2 Qf4 $17) 43... Ke8 44. Nf5) 42... Qg7 $15 {[%emt 0:00:08]} 43. Qf5+ {[%emt 0:00:01]} Ke7 {[%emt 0:00:04]} 44. Ng4 {[%emt 0:00:01]} ({White has to play} 44. Qh5 $15 Kd7 45. Nf7) 44... Nd7 $19 {[%emt 0:00:01]} 45. Qh5 {[%emt 0:00:02]} Kd6 {[%emt 0:00:02] Threatens to win with ...Qg5.} 46. Ne3 {[%emt 0:00:01]} Kc7 {[%emt 0:00:02]} 47. Nf5 {[%emt 0:00:03]} Qg5 {[%emt 0:00:02]} 48. Qd1 {[%emt 0:00:00]} Qf6 {[%emt 0:00:04] Prevents Qd6+.} 49. Qd2 {[%emt 0:00:05]} (49. g3 $17 {keeps fighting.}) 49... Nb6 {[%emt 0:00:02]} 50. Qe3 {[%emt 0:00:01]} (50. g3 $142) 50... Kb7 {[%emt 0:00:02]} 51. g4 {[%emt 0:00:01]} hxg3 {[%emt 0:00:02]} 52. fxg3 {[%emt 0:00:01]} (52. Qxg3 $142 Nd5 53. h4) 52... Nc4 {[%emt 0:00:01]} 53. Qd3 {[%emt 0:00:02]} Bb6+ {[%emt 0:00:02]} 54. Kg2 {[%emt 0:00:01] [#]} Kc7 $1 {[%emt 0:00:03]} 55. h4 {[%emt 0:00:01][%cal Bh3h4,Bh4h5,Bh5h6,Bh6h7][%mdl 32]} Qg6 {[%emt 0:00:02]} (55... Qd8 $17 56. Qxd8+ Kxd8) 56. Qe2 {[%emt 0:00:05]} (56. Qf3 $1 $11 {remains equal.}) 56... Qh7 {[%emt 0:00:03]} ({Black should play} 56... Qf7 $17 57. Kh3 Nd6) 57. h5 $11 {[%emt 0:00:01] The position is equal.} Nd6 {[%emt 0:00:03]} 58. Qg4 {[%emt 0:00:01]} Nxf5 {[%emt 0:00:01]} 59. exf5 {[%emt 0:00:04]} Qd7 {[%emt 0:00:01]} 60. Kh3 {[%emt 0:00:02]} Qd2 {[%emt 0:00:03]} 61. Qg7+ {[%emt 0:00:01]} Kc8 {[%emt 0:00:01]} 62. h6 {[%emt 0:00:01]} Qe2 {[%emt 0:00:03]} 63. Qg8+ {[%emt 0:00:04]} Bd8 {[%emt 0:00:01]} 64. h7 {[%emt 0:00:02][%cal Og8d8] aiming for Qxd8+!} Qh5+ 65. Kg2 Qe2+ {[%emt 0:00:03]} 66. Kh3 {[%emt 0:00:01][%cal Og8d8] Hoping for Qxd8+! Chess con chili.} Qh5+ {[%emt 0:00:03]} 67. Kg2 {[%emt 0:00:01] And White is the lucky defender.  Weighted Error Value: White=0.23 (precise) /Black=0.19 (very precise)} 1/2-1/2

[Event "Susha Chess Blitz 2022"]
[Site "Shusha"]
[Date "2022.09.24"]
[Round "10"]
[White "Radjabov, Teimour"]
[Black "Kasimdzhanov, Rustam"]
[Result "1-0"]
[ECO "D02"]
[WhiteElo "2747"]
[BlackElo "2670"]
[Annotator "TA"]
[PlyCount "97"]
[EventDate "2022.09.24"]
[EventType "tourn"]
[EventCountry "AZE"]
[SourceTitle "playchess.com"]
[Source "ChessBase"]
[SourceQuality "1"]
[TimeControl "180+2"]

{[%evp 12,97,14,11,11,6,0,-22,6,26,58,42,66,56,62,63,103,90,170,102,90,98,106,49,78,23,34,14,16,0,0,0,0,-14,0,-83,-25,-36,53,-41,-39,-47,0,0,10,7,11,4,37,65,58,-27,56,-41,86,67,115,23,31,0,24,25,39,39,37,45,74,0,83,0,220,70,564,561,550,535,513,481,480,479,703,608,853,592,872,475,5908,5879]} 1. d4 {[%emt 0:00:01]} d5 {[%emt 0:00:01]} 2. Nf3 {[%emt 0:00:01]} c5 {[%emt 0:00:01]} 3. e3 {[%emt 0:00:03]} Nf6 {[%emt 0:00:03]} 4. c4 {[%emt 0:00:01]} e6 {[%emt 0:00:01]} 5. Nc3 {[%emt 0:00:01]} a6 {[%emt 0:00:01][%cal Ba7a6,Ba6a5][%mdl 32]} 6. dxc5 {[%emt 0:00:08]} Bxc5 {[%emt 0:00:02]} 7. a3 {[%emt 0:00:02]} O-O {[%emt 0:00:09] D40: Queen's Gambit Declined: Semi-Tarrasch with 5 e3.} 8. b4 {[%emt 0:00:00]} Be7 {[%emt 0:00:01]} 9. Bb2 {[%emt 0:00:01]} a5 {[%emt 0:00:04] The position is equal.} 10. b5 {[%emt 0:00:03]} b6 {[%emt 0:00:16]} 11. cxd5 $1 {[%emt 0:00:02]} exd5 {[%emt 0:00:02]} 12. Be2 {[%emt 0:00:04]} Bb7 {[%emt 0:00:02] [#]} 13. Nd4 $146 {[%emt 0:00:05]} ({Predecessor:} 13. O-O Nbd7 14. Qc2 Rc8 15. Rfd1 Re8 16. Bd3 Qc7 17. Rac1 Ne5 18. Nxe5 Qxe5 19. Qa4 {1-0 (35) Ebenhoech,D (2066)-Schrader,J (2053) Bayern 2016}) 13... Bd6 {[%emt 0:00:17]} 14. O-O {[%emt 0:00:09]} Qc7 {[%emt 0:00:02]} (14... Re8 $16) 15. h3 {[%emt 0:00:06]} (15. Rc1 $1 $18 {[%cal Oc3d5] Black must now prevent Nxd5!} Bxh2+ 16. Kh1) 15... Nbd7 $16 {[%emt 0:00:01]} 16. Rc1 {[%emt 0:00:04][%cal Oc3d5] aiming for Nxd5!} Nc5 {[%emt 0:00:02]} 17. Qc2 {[%emt 0:00:12]} (17. Na4 $16) 17... Rfe8 {[%emt 0:00:07]} 18. Qb1 {[%emt 0:00:09]} ({White should play} 18. Nc6 $16) 18... Bh2+ $11 {[%emt 0:00:07]} 19. Kh1 {[%emt 0:00:01]} Be5 {[%emt 0:00:02]} 20. Nf3 {[%emt 0:00:08]} Bd6 {[%emt 0:00:06]} 21. Kg1 {[%emt 0:00:01]} Qe7 {[%emt 0:00:03]} 22. Rcd1 {[%emt 0:00:04]} Rad8 {[%emt 0:00:03]} 23. Qf5 {[%emt 0:00:32]} (23. Rfe1 $11 {remains equal.}) 23... h6 {[%emt 0:00:30]} (23... Bb8 $17 24. Rfe1 Nfe4) 24. Nd4 {[%emt 0:00:06]} g6 {[%emt 0:00:09]} (24... Bc7 $15) 25. Qf3 {[%emt 0:00:23]} (25. Qc2 $1 $14) 25... Nce4 {[%emt 0:00:06]} 26. Bd3 {[%emt 0:00:22]} Ng5 {[%emt 0:00:10]} (26... Qe5 $15 27. g3 Bxa3 $1 28. Bxa3 Nxc3) 27. Qe2 {[%emt 0:00:01]} Bxa3 {[%emt 0:00:07]} 28. Nc6 {[%emt 0:00:12]} Bxc6 {[%emt 0:00:04]} 29. bxc6 {[%emt 0:00:01]} Bb4 {[%emt 0:00:34]} 30. Nb5 {[%emt 0:00:02][%mdl 1024] White has compensation.} Rc8 {[%emt 0:00:15]} 31. Rc1 {[%emt 0:00:01]} ({White should try} 31. Qc2 $14) 31... Nfe4 {[%emt 0:00:07]} (31... Bc5 $1 $11) 32. Ba1 {[%emt 0:00:06] A strong pair of Bishops.} (32. h4 $14 Ne6 33. Bxe4 dxe4 34. Rfd1) 32... Kh7 {[%emt 0:00:12]} (32... Nd2 $1 $15) 33. Rfd1 $16 {[%emt 0:00:05]} (33. Qb2 $6 Rg8 $11) 33... Nc5 {[%emt 0:00:04] [#]} (33... Bc5 $14) 34. c7 $40 {[%emt 0:00:08][%mdl 128] Black needs to defend precisely.} ({Reject} 34. Qb2 $6 Rg8 $11) (34. h4 $1 $16 {[%cal Rh4g5]} Nge4 35. c7 (35. Qb2 Rg8 $15)) 34... Nge6 $11 {[%emt 0:00:01]} 35. Qb2 {[%emt 0:00:01] Inhibits Nb3.} Rg8 {[%emt 0:00:03]} 36. Bb1 {[%emt 0:00:08]} Nxc7 {[%emt 0:00:02]} 37. Na7 {[%emt 0:00:01] The board is on fire.} Rce8 {[%emt 0:00:08] Hoping for ...Qd7.} 38. Nc6 $1 {[%emt 0:00:02][%csl LRb4,LRe7]} Qd6 {[%emt 0:00:03]} 39. Ne5 {[%emt 0:00:01] White is more active.} (39. Nxb4 $16 axb4 40. Qxb4) 39... Re7 {[%emt 0:00:04] [#]} (39... Ba3 $1 $11 40. Qxa3 Rxe5) 40. Ng4 {[%emt 0:00:02]} ({Better is} 40. f4 $1 $16) 40... Ne8 $2 {[%emt 0:00:01]} (40... Nd7 $1 $11) 41. Rd4 {[%emt 0:00:12]} (41. Ba2 $18) 41... f5 $2 {[%emt 0:00:02][%mdl 8192] [#] A mistake that costs the game.} (41... Ne6 $14 42. Nxh6 Nxd4 43. Nxg8 Ne2+ 44. Kf1 d4 45. Kxe2 (45. Nxe7 Nxc1 46. Qxc1 Qxe7 $14) 45... Kxg8 46. Qxd4 Qxd4 47. Bxd4 Rc7 48. Rxc7 Nxc7) 42. Nxh6 $1 $18 {[%emt 0:00:01][%mdl 512] White is clearly winning.} Qf6 {[%emt 0:00:05] Against Rh4} 43. Nxg8 {[%emt 0:00:05]} Kxg8 {[%emt 0:00:01]} 44. Qa2 {[%emt 0:00:01][%cal Od4b4] Strongly threatening Rxb4!} Qf7 {[%emt 0:00:02]} 45. Rxd5 {[%emt 0:00:03][%cal Bd4d5,Bd5d8,Bd8g8][%mdl 32]} Kh7 {[%emt 0:00:02]} (45... Kf8 $142 46. Rcd1 Ne6) 46. Rcd1 {[%emt 0:00:07]} Nf6 {[%emt 0:00:02]} 47. Rd8 {[%emt 0:00:02] Threatens to win with Qb2.} Qxa2 {[%emt 0:00:03]} 48. Bxa2 {[%emt 0:00:00]} Kg7 {[%emt 0:00:03]} (48... Nce4 $142 49. Rb8 Rc7 50. Rxb6 Nd7) 49. Rg8+ {[%emt 0:00:11] Weighted Error Value: White=0.52/Black=0.46} 1-0